bitfinex-derivatives/quotes_ETHF0:USTF0_20251107
["timestamp","ask_amount","ask_price","bid_price","bid_amount"]
[1762528549538,3.21113712,3314.2,3313.7,3.2078]
[1762528549936,3.21113712,3314.2,3313.6,0.48924]
[1762528550136,0.48919,3314.0,3313.4,0.48926]
[1762528550337,3.69702,3313.8,3313.2,0.4893]
[1762528550544,0.7947,3313.2,3313.1,0.00452583]
[1762528551242,3.2078,3313.9,3313.1,0.00452583]
[1762528551437,3.2078,3313.9,3313.3,3.2078]
[1762528551639,3.2078,3314.0,3313.3,3.2078]
[1762528551834,3.2078,3314.0,3313.1,0.00452583]
[1762528551835,3.2078,3313.5,3313.1,0.00452583]
[1762528552034,3.2078,3313.9,3313.1,0.00452583]
[1762528552238,3.2078,3314.0,3313.8,0.48922]
[1762528552440,3.2078,3314.0,3313.1,3.21232583]
[1762528552844,3.2078,3314.0,3313.8,0.48921]
[1762528553042,3.2078,3314.0,3313.1,0.00452583]
[1762528553229,3.2078,3313.6,3313.1,0.00452583]
[1762528553636,0.48928,3313.5,3313.1,0.00452583]
[1762528553831,0.48927,3313.5,3313.1,0.00452583]
[1762528554034,3.2078,3313.6,3313.3,0.4893]
[1762528554238,3.2078,3313.6,3313.1,0.00452583]
[1762528554542,3.2078,3313.6,3313.4,0.48928]
[1762528555238,3.2078,3314.0,3313.8,0.48922]
[1762528555442,0.48922,3313.8,3313.1,0.00452583]
[1762528555637,3.2078,3313.6,3313.3,0.48929]
[1762528555936,3.2078,3314.0,3313.5,0.48926]
[1762528556138,3.2078,3313.6,3313.1,0.00452583]
[1762528556343,3.2078,3313.7,3313.1,0.00452583]
[1762528556544,3.2078,3313.3,3313.1,0.00452583]
[1762528556843,0.48931,3313.2,3313.1,0.00452583]
[1762528557041,3.2078,3313.3,3313.2,0.48931]
[1762528557236,0.7947,3313.2,3312.7,0.0038971]
[1762528557434,3.2078,3312.8,3312.2,0.48945]
[1762528557635,3.2078,3312.8,3311.4,3.2078]
[1762528557839,3.2078,3312.8,3311.9,3.2078]
[1762528558043,3.2078,3312.4,3311.9,3.2078]
[1762528558340,3.69723,3312.5,3312.1,0.48948]
[1762528558538,0.48945,3312.3,3312.1,0.48947]
[1762528558843,3.21232583,3312.5,3311.9,0.00263328]
[1762528559045,0.48943,3312.4,3312.1,0.48947]
[1762528559339,0.48949,3312.0,3311.9,0.00263328]
[1762528559540,1.19236,3312.1,3311.9,3.328e-05]
[1762528559741,3.2078,3312.0,3311.9,3.328e-05]
[1762528560446,3.21232583,3312.5,3311.9,3.328e-05]
[1762528560650,3.9107,3312.1,3311.1,0.48961]
[1762528560944,3.2078,3311.4,3310.5,3.2078]
[1762528561134,3.2078,3310.8,3310.0,3.2078]
[1762528561333,3.2078,3311.6,3310.4,3.2078]
[1762528561542,3.6974,3311.2,3310.4,3.2078]
[1762528561846,3.2078,3310.8,3310.5,0.00452583]
[1762528562545,0.48967,3310.7,3310.5,0.00452583]
[1762528562746,0.48967,3310.7,3310.5,2.583e-05]
[1762528562949,0.48975,3310.2,3310.0,3.2078]
[1762528563149,0.48975,3310.2,3308.7,0.74836867]
[1762528563150,0.48976,3310.2,3309.5,3.2078]
[1762528563341,3.2078,3310.0,3309.5,3.2078]
[1762528563538,3.2078,3310.3,3309.5,3.2078]
[1762528563738,0.48978,3310.0,3309.5,3.69764]
[1762528563956,3.2078,3310.3,3309.5,3.7005986]
[1762528564250,3.2078,3310.3,3309.5,3.2107686]
[1762528564447,3.2078,3310.3,3310.1,0.48975]
[1762528565044,0.48971,3310.5,3309.5,3.2107686]
[1762528565239,3.69758,3310.0,3309.5,3.7006086]
[1762528565443,0.48982,3309.7,3309.5,0.0029686]
[1762528565645,3.2078,3310.1,3309.9,0.48978]
[1762528565944,3.2078,3310.8,3309.7,3.2078]
[1762528566146,3.2078,3310.8,3310.5,0.48969]
[1762528566341,3.2078,3310.8,3309.7,3.2078]
[1762528566546,0.00452583,3311.1,3311.0,0.48962]
[1762528566753,0.00452583,3311.1,3311.0,3.69742]
[1762528566947,0.00452583,3311.1,3311.0,0.48962]
[1762528567143,0.00452583,3311.1,3310.6,3.2078]
[1762528567449,0.00452583,3311.1,3310.9,0.48962]
[1762528567645,0.00452583,3311.1,3310.5,3.2078]
[1762528568145,0.00452583,3311.1,3311.0,0.48962]
[1762528568853,0.00452583,3311.1,3310.9,3.69743]
[1762528569146,0.00452583,3311.1,3310.9,3.2078]
[1762528569350,0.00452583,3311.1,3310.9,3.69743]
[1762528569643,0.00452583,3311.1,3310.9,3.2078]
[1762528569847,0.00452583,3311.1,3310.9,3.69743]
[1762528571051,0.48974,3310.1,3310.0,3.2078]
[1762528571253,3.2078,3310.5,3309.5,0.0029686]
[1762528571462,0.48982,3309.6,3309.5,0.0029686]
[1762528571944,0.48982,3309.6,3307.7,0.4133]
[1762528571945,0.4899,3309.1,3308.8,3.2078]
[1762528572138,0.4899,3309.1,3308.9,0.48992]
[1762528572338,3.2078,3309.4,3308.6,3.2078]
[1762528572553,3.9107,3309.9,3309.1,3.2078]
[1762528572737,0.48985,3309.5,3309.2,0.48988]
[1762528572941,0.48987,3309.3,3309.2,0.00334769]
[1762528573138,0.7029,3308.8,3308.1,3.2078]
[1762528573339,0.7029,3308.8,3306.6,3.95616867]
[1762528573340,3.2078,3308.4,3306.6,3.95616867]
[1762528573543,3.2078,3307.4,3306.6,3.69806]
[1762528573746,0.49017,3307.3,3306.8,0.49024]
[1762528573953,3.2078,3307.4,3306.4,3.2078]
[1762528574145,0.00239529,3307.4,3306.4,3.21127266]
[1762528574341,0.00239529,3307.4,3307.2,3.69797]
[1762528574542,0.00453275,3307.2,3306.8,3.2078]
[1762528574845,0.00453275,3307.2,3306.6,0.00453275]
[1762528575239,0.00453275,3307.2,3307.0,0.4902]
[1762528575648,0.00453275,3307.2,3306.6,0.00453275]
[1762528575853,0.00453275,3307.2,3307.1,0.49019]
[1762528576149,0.00453275,3307.2,3306.6,0.00453275]
[1762528576352,0.00453275,3307.2,3306.7,0.49025]
[1762528576553,0.4902,3307.1,3306.6,0.00453275]
[1762528576752,3.2078,3307.1,3306.6,0.00453275]
[1762528576955,3.2078,3306.7,3306.6,0.00453275]
[1762528577655,11.2078,3306.7,3306.6,0.00453275]
[1762528577850,0.49027,3306.6,3306.4,0.00347266]
[1762528578153,3.2078,3306.7,3305.9,0.49036]
[1762528578348,3.2078,3306.0,3304.7,3.2078]
[1762528578548,3.2078,3305.4,3305.2,0.49047]
[1762528578850,3.69825,3305.4,3305.0,0.00301955]
[1762528579050,3.2078,3305.4,3305.2,0.49047]
[1762528579257,0.00453275,3305.5,3305.3,0.49046]
[1762528579457,3.2078,3305.4,3305.3,0.49046]
[1762528579752,0.49047,3305.3,3305.0,0.00664153]
[1762528580055,3.2078,3306.6,3306.4,0.4903]
[1762528580247,3.2078,3307.1,3306.3,3.69811]
[1762528580451,3.2078,3307.1,3305.9,3.2078]
[1762528580452,0.49023,3306.9,3305.9,3.2078]
[1762528580651,3.69806,3306.7,3306.3,0.49031]
[1762528580846,3.2078,3307.2,3305.9,3.2078]
[1762528581049,0.00453275,3306.9,3306.3,3.2078]
[1762528581346,3.2078,3306.8,3306.6,0.49026]
[1762528581554,3.2078,3306.8,3305.9,3.2078]
[1762528581750,3.2078,3306.8,3306.7,0.49025]
[1762528581953,3.2078,3306.8,3306.6,0.49026]
[1762528582153,0.00453275,3306.9,3306.8,0.49024]
[1762528582359,0.00239529,3307.4,3307.3,0.49017]
[1762528582559,0.00239529,3307.4,3306.7,3.2078]
[1762528582853,3.11149392,3307.6,3307.5,0.49014]
[1762528583063,3.2078,3308.0,3307.1,3.2078]
[1762528583251,3.69793,3307.6,3306.7,3.2078]
[1762528583453,0.00453275,3307.5,3307.4,0.49015]
[1762528583852,3.21233275,3307.5,3307.3,0.49015]
[1762528584054,3.21563367,3307.5,3307.3,0.49017]
[1762528584257,3.2078,3308.5,3308.4,0.49]
[1762528584551,1.6045967,3311.3,3307.1,3.2078]
[1762528584552,3.2078,3310.9,3310.3,0.48972]
[1762528584751,0.48945,3312.2,3310.4,6.0408]
[1762528584966,0.48949,3311.9,3311.2,0.48959]
[1762528585256,0.48953,3311.7,3310.8,0.48964]
[1762528585455,0.48959,3311.3,3310.9,0.00453275]
[1762528585756,0.48957,3311.4,3310.9,0.00453275]
[1762528585958,0.48961,3311.1,3310.9,0.00453275]
[1762528586162,0.48958,3311.3,3310.9,0.00453275]
[1762528586360,0.00453275,3311.5,3310.9,0.00453275]
[1762528586663,0.00453275,3311.5,3311.3,0.48957]
[1762528586858,0.00453275,3311.5,3311.2,3.2078]
[1762528587061,0.48966,3310.8,3310.2,3.2078]
[1762528587365,3.2078,3311.1,3310.2,3.10750162]
[1762528587868,0.48965,3310.9,3310.2,3.10750162]
[1762528588160,3.21233275,3311.5,3310.9,0.48962]
[1762528588358,3.21233275,3311.5,3310.8,0.7184]
[1762528588963,0.48972,3310.4,3310.2,0.00689176]
[1762528589459,3.2078,3310.6,3309.8,3.2078]
[1762528589460,0.48978,3309.9,3309.8,3.2078]
[1762528589665,0.48978,3309.9,3309.2,0.48988]
[1762528589666,0.48985,3309.5,3309.2,3.2078]
[1762528589855,3.2078,3310.0,3309.2,3.2078]
[1762528590160,3.2078,3310.0,3308.0,0.7184]
[1762528590161,3.2078,3310.8,3310.0,0.48976]
[1762528590361,0.49420275,3310.7,3310.2,0.48973]
[1762528590557,0.00453275,3310.7,3310.1,0.00453275]
[1762528590763,0.00453275,3310.7,3310.5,0.48968]
[1762528591057,3.275e-05,3310.7,3310.5,0.48968]
[1762528591267,3.2078,3312.1,3311.9,0.48948]
[1762528591458,3.2078,3312.5,3312.3,0.48942]
[1762528591765,3.2078,3313.7,3312.3,3.2078]
[1762528591959,3.2078,3313.7,3313.5,0.48924]
[1762528592160,3.2078,3314.2,3313.2,4.0443]
[1762528592362,0.00370547,3313.7,3313.5,0.48924]
[1762528592566,3.2078,3314.5,3314.4,1.32562]
[1762528592764,10.884,3315.8,3314.4,0.8365]
[1762528592963,10.884,3315.8,3314.4,1.3256]
[1762528593160,0.48898,3315.4,3314.5,0.48909]
[1762528593468,3.2078,3315.1,3314.6,0.48908]
[1762528593668,0.48907,3314.8,3314.6,0.00452556]
[1762528593974,3.69687,3314.7,3314.6,0.00452556]
[1762528594155,3.69687,3314.7,3313.9,3.2078]
[1762528594156,0.48917,3314.1,3313.9,3.2078]
[1762528594464,0.48919,3313.9,3313.3,3.2078]
[1762528594766,3.2078,3313.9,3312.9,3.2078]
[1762528594957,0.48927,3313.4,3312.9,3.2078]
[1762528595155,3.2078,3314.0,3312.9,3.2078]
[1762528595360,0.49376556,3313.6,3313.0,0.00452556]
[1762528595561,0.48927,3313.4,3313.0,0.00452556]
[1762528595860,0.48927,3313.4,3313.2,0.0024698]
[1762528596562,0.48938,3312.7,3312.5,3.2078]
[1762528597057,0.48951,3311.8,3311.3,3.2078]
[1762528597359,7.05,3314.5,3311.0,0.8365]
[1762528597360,3.2078,3311.6,3311.0,0.8365]
[1762528597558,3.21488007,3311.6,3311.0,0.84201319]
[1762528597869,0.48959,3311.2,3311.0,0.84201319]
[1762528598165,3.2078,3311.1,3311.0,0.00551319]
[1762528598559,3.2078,3311.1,3309.6,0.8365]
[1762528598560,0.48968,3310.6,3310.0,3.2078]
[1762528598763,3.2078,3311.0,3310.0,3.2078]
[1762528598964,0.00708007,3311.6,3310.0,3.2078]
[1762528598965,0.48973,3310.3,3310.0,3.2078]
[1762528599369,3.6975,3310.5,3310.0,3.2078]
[1762528599569,0.48974,3310.2,3310.0,3.21125333]
[1762528600269,0.48974,3310.2,3308.5,40.8]
[1762528600270,11.2078,3310.1,3308.5,3.2078]
[1762528600471,3.2078,3309.1,3308.5,3.2078]
[1762528600670,0.48991,3309.0,3308.1,3.2078]
[1762528600974,0.49008,3307.9,3307.7,3.2078]
[1762528601267,3.21104487,3307.9,3307.7,0.00213071]
[1762528601480,0.00324487,3307.9,3307.8,0.49009]
[1762528601661,3.2078,3308.7,3307.7,0.00213071]
[1762528601662,3.2078,3308.7,3308.5,0.8121]
[1762528601863,3.2078,3309.3,3308.7,0.48995]
[1762528602066,0.00453261,3309.6,3307.7,0.00213071]
[1762528602067,3.2078,3308.8,3307.7,0.00213071]
[1762528602270,0.49008,3307.9,3307.7,0.00213071]
[1762528602472,3.2078,3308.5,3307.7,0.00213071]
[1762528602671,3.21089601,3308.5,3307.7,0.00213071]
[1762528602866,0.49004,3308.2,3307.7,0.00213071]
[1762528603071,0.00453261,3309.6,3308.5,0.8121]
[1762528603263,3.2078,3311.2,3309.5,3.2078]
[1762528603468,3.2078,3310.7,3310.0,3.2078]
[1762528603664,0.48987,3309.3,3309.1,3.2078]
[1762528603865,3.2078,3309.3,3308.6,3.2078]
[1762528604070,0.00236374,3309.3,3308.6,3.2078]
[1762528604377,0.48988,3309.2,3308.6,3.21233261]
[1762528604676,3.2078,3309.1,3308.6,3.21233261]
[1762528604873,0.48992,3309.0,3308.6,3.21233261]
[1762528605072,0.48995,3308.8,3308.6,3.21233261]
[1762528605375,0.00689635,3309.3,3309.1,0.48988]
[1762528605577,3.2078,3311.0,3309.6,0.8121]
[1762528605766,1.6045967,3312.9,3309.6,0.8121]
[1762528605767,3.2078,3311.7,3310.8,0.8121]
[1762528605974,3.2078,3312.3,3311.0,3.2078]
[1762528606266,0.48946,3312.1,3311.4,3.2078]
[1762528606671,0.48949,3311.9,3311.5,0.48954]
[1762528606873,0.00320858,3311.9,3311.6,0.48952]
[1762528607077,0.00320858,3311.9,3311.5,0.49244613]
[1762528607475,0.49269858,3311.9,3311.5,0.00291613]
[1762528607671,0.48952,3311.7,3311.5,0.00291613]
[1762528609068,8.48952,3311.7,3311.5,0.00291613]
[1762528609377,0.48952,3311.7,3311.5,0.00291613]
[1762528610076,3.69732,3311.7,3311.5,0.00291613]
[1762528610276,0.00320858,3311.9,3311.5,0.00291613]
[1762528610576,0.48952,3311.7,3311.5,0.00291613]
[1762528610871,0.00320858,3311.9,3311.5,0.00291613]
[1762528611075,3.69732,3311.7,3311.5,0.00291613]
[1762528611578,0.48963,3310.9,3310.8,0.8121]
[1762528611778,3.2078,3311.7,3310.8,0.8121]
[1762528612379,0.48962,3311.0,3310.8,0.8121]
[1762528612579,0.48962,3311.0,3310.8,0.00332844]
[1762528612973,3.2078,3311.7,3310.8,0.81542844]
[1762528613178,3.2078,3311.7,3311.2,3.69738]
[1762528613374,3.2078,3311.7,3311.2,3.2078]
[1762528613679,3.2078,3311.7,3310.8,4.02322844]
[1762528613877,0.4896,3311.2,3310.8,1.30506844]
[1762528614180,0.48956,3311.4,3311.2,0.48958]
[1762528614376,0.00320858,3311.9,3311.3,0.48957]
[1762528614584,0.00320858,3311.9,3311.7,0.48951]
[1762528614876,0.4895,3311.8,3311.6,3.2078]
[1762528615179,0.48957,3311.3,3311.2,3.2078]
[1762528615486,0.00320858,3311.9,3311.2,3.2078]
[1762528615781,0.00320858,3311.9,3311.6,3.2078]
[1762528615972,0.4895,3311.8,3311.6,3.2078]
[1762528616674,0.48959,3311.2,3311.1,3.2078]
[1762528616877,0.00320858,3311.9,3311.1,3.6974]
[1762528617074,0.49269858,3311.9,3311.8,3.2078]
[1762528617875,0.00029245,3312.0,3311.8,3.6973]
[1762528618087,0.48943,3312.3,3312.1,0.8121]
[1762528618284,0.48959,3311.2,3310.8,0.81542844]
[1762528618577,3.2078,3313.0,3311.0,3.2078]
[1762528618783,3.2078,3312.5,3311.4,3.2078]
[1762528618983,0.48962,3311.0,3310.9,3.2078]
[1762528619376,0.48975,3310.1,3310.0,3.2078]
[1762528619877,0.48981,3309.7,3309.6,0.8121]
[1762528620475,0.49299499,3309.7,3309.6,0.81503716]
[1762528620679,0.49299499,3309.7,3309.6,0.00293716]
[1762528620885,0.00318499,3309.7,3309.6,0.94673716]
[1762528621282,3.2078,3310.7,3309.6,0.94673716]
[1762528621479,12.4835967,3312.4,3309.6,0.94673716]
[1762528621480,3.2078,3311.3,3310.1,3.2078]
[1762528621685,0.48969,3310.5,3310.1,3.2078]
[1762528621884,0.48981,3309.8,3309.6,4.15453716]
[1762528622080,0.48981,3309.8,3309.6,0.00293716]
[1762528622285,8.0,3309.7,3309.3,9.77e-06]
[1762528622586,8.0,3309.7,3306.9,1.52330033]
[1762528622587,0.49,3308.4,3308.3,3.2078]
[1762528622787,0.00230855,3309.8,3308.4,0.9438]
[1762528622991,3.2078,3309.5,3308.6,3.2078]
[1762528623188,0.49002,3308.3,3308.2,3.2078]
[1762528623389,3.2078,3308.7,3308.4,0.9438]
[1762528623686,3.2078,3309.3,3309.2,0.48988]
[1762528623889,0.00230855,3309.8,3309.7,0.48981]
[1762528624088,3.2078,3310.9,3310.8,0.48965]
[1762528624288,10.88,3312.1,3309.9,0.9438]
[1762528624481,0.48964,3310.9,3310.4,0.4897]
[1762528624685,10.88,3312.1,3309.9,0.9438]
[1762528624881,0.00453261,3311.3,3311.1,0.4896]
[1762528625085,0.00726885,3311.3,3311.1,0.49329038]
[1762528625284,0.00726885,3311.3,3311.1,0.00369038]
[1762528625488,0.00726885,3311.3,3311.2,3.2078]
[1762528625885,0.00726885,3311.3,3309.2,0.76217059]
[1762528626192,0.48996,3308.7,3308.5,1.52330033]
[1762528626490,5.132,3310.3,3307.3,1.01553355]
[1762528626693,5.132,3310.3,3308.4,0.9438]
[1762528627093,0.00453261,3309.7,3309.5,0.48983]
[1762528627289,0.00250309,3310.3,3309.6,0.9438]
[1762528627486,0.00250309,3310.3,3309.8,0.48979]
[1762528627687,0.00250309,3310.3,3309.6,0.9438]
[1762528627891,0.00250309,3310.3,3310.1,0.48975]
[1762528628092,3.2078,3310.2,3310.1,0.48975]
[1762528628293,0.00453261,3310.5,3310.1,6.0416]
[1762528628488,0.00453261,3310.5,3310.4,0.4897]
[1762528628684,0.48965,3310.8,3310.4,3.2078]
[1762528628887,3.2078,3311.3,3310.4,3.2078]
[1762528629095,0.48961,3311.1,3310.7,0.48965]
[1762528629292,0.48967,3310.7,3310.4,3.2078]
[1762528629489,0.48975,3310.1,3310.0,0.00453261]
[1762528629693,0.00453261,3310.4,3310.0,3.21233261]
[1762528629895,0.00253839,3311.3,3310.5,0.48969]
[1762528630196,0.00253839,3311.3,3310.5,3.2078]
[1762528630490,0.00253839,3311.3,3311.1,0.48959]
[1762528630684,3.2078,3313.0,3311.1,0.94627519]
[1762528630890,0.48929,3313.3,3312.8,0.48934]
[1762528631091,3.2078,3313.4,3313.2,0.48928]
[1762528631092,3.21233261,3313.4,3313.2,0.48928]
[1762528631289,0.00453261,3313.4,3313.1,3.2078]
[1762528631489,0.00453261,3313.4,3313.1,0.4893]
[1762528631690,0.00665582,3313.4,3312.7,3.2078]
[1762528632090,0.00665582,3313.4,3311.7,0.00453261]
[1762528632289,0.48931,3313.1,3312.4,3.6972]
[1762528632489,0.00665582,3313.4,3312.8,3.2078]
[1762528632890,0.49592582,3313.4,3312.8,3.69714]
[1762528633087,0.00665582,3313.4,3312.0,3.2078]
[1762528633289,0.00665582,3313.4,3311.7,0.00453261]
[1762528633290,0.4895,3311.8,3311.7,0.00453261]
[1762528633589,0.4895,3311.9,3311.7,0.00453261]
[1762528633794,3.2078,3311.8,3311.7,0.00453261]
[1762528634090,0.48959,3311.2,3311.1,0.00247519]
[1762528634293,0.48955,3311.4,3311.1,0.00247519]
[1762528634498,3.2078,3311.9,3311.1,0.00247519]
[1762528634687,0.48958,3311.3,3311.1,0.00247519]
[1762528635292,0.48957,3311.3,3311.1,0.00247519]
[1762528635600,3.2078,3311.4,3311.1,0.00247519]
[1762528635891,3.69738,3311.3,3311.1,0.00247519]
[1762528636096,0.48975,3310.2,3310.1,3.2078]
[1762528636293,0.00453261,3311.5,3309.7,3.2078]
[1762528636492,3.2078,3311.0,3310.1,3.2078]
[1762528636692,0.48965,3310.8,3310.1,3.2078]
[1762528636899,3.2078,3311.0,3310.1,3.2078]
[1762528637090,0.48972,3310.3,3310.2,0.00453261]
[1762528637296,0.00453261,3310.9,3310.4,0.48969]
[1762528637493,0.00453261,3310.9,3310.5,0.48968]
[1762528637494,0.48965,3310.8,3310.5,0.48968]
[1762528637694,0.00453261,3310.9,3310.2,0.00453261]
[1762528637995,0.48966,3310.8,3310.2,0.00453261]
[1762528638201,0.00453261,3310.9,3310.2,0.00453261]
[1762528638399,3.2078,3310.3,3308.9,1.01553355]
[1762528638592,0.48996,3308.7,3308.5,3.2078]
[1762528638797,0.49003,3308.2,3308.1,3.2078]
[1762528639001,0.49009,3307.8,3307.7,3.2078]
[1762528639194,1.06973113,3309.5,3306.0,2.46710033]
[1762528639195,0.49015,3307.4,3307.2,3.2078]
[1762528639397,3.2078,3308.1,3307.2,3.2078]
[1762528639705,0.00237738,3307.4,3307.3,0.00453261]
[1762528639902,0.00237738,3307.4,3307.3,3.21233261]
[1762528640301,3.261e-05,3308.0,3307.8,0.49008]
[1762528640496,3.2078,3309.8,3307.9,3.2078]
[1762528640701,6.536,3310.7,3309.6,0.48982]
[1762528640702,3.2078,3310.2,3309.6,0.48982]
[1762528640992,3.2078,3310.2,3309.2,3.2078]
[1762528640993,3.2078,3310.2,3309.7,0.4898]
[1762528641297,0.00275776,3310.2,3309.7,0.00321876]
[1762528641509,0.00275776,3310.2,3310.0,0.48976]
[1762528641800,0.00275776,3310.2,3310.0,3.69756]
[1762528642007,3.2078,3311.0,3310.0,3.2078]
[1762528642198,0.48968,3310.6,3310.0,3.2078]
[1762528642495,0.48969,3310.6,3310.3,0.48971]
[1762528642700,3.2078,3311.4,3310.4,3.2078]
[1762528642899,3.2078,3311.4,3310.8,3.2078]
[1762528642900,3.207,3311.4,3310.8,3.2078]
[1762528643091,0.00680784,3311.4,3311.2,0.48958]
[1762528643296,0.00680784,3311.4,3311.2,3.2078]
[1762528643499,0.48963,3310.9,3310.8,3.2078]
[1762528643702,0.48963,3310.9,3310.5,0.48968]
[1762528643898,0.48967,3310.7,3310.4,3.2078]
[1762528644303,0.48964,3310.9,3310.6,0.48967]
[1762528644498,0.00680784,3311.4,3310.4,3.2078]
[1762528644801,0.00680784,3311.4,3311.2,3.69738]
[1762528645294,0.00680784,3311.4,3311.3,6.04]
[1762528645492,0.00680784,3311.4,3311.2,3.2078]
[1762528645699,0.00680784,3311.4,3311.2,3.69738]
[1762528645994,3.2078,3312.4,3312.2,0.48943]
[1762528646397,0.48945,3312.2,3312.0,3.2078]
[1762528646906,0.48945,3312.1,3312.0,0.00301329]
[1762528647099,0.00350205,3312.2,3312.0,0.00301329]
[1762528647499,1.97783113,3314.4,3312.9,0.48934]
[1762528647500,3.2078,3313.0,3312.9,0.48934]
[1762528647700,3.2078,3313.6,3313.1,0.48929]
[1762528647903,3.2078,3313.2,3312.8,0.48934]
[1762528648204,0.48932,3313.0,3312.8,0.48935]
[1762528648500,0.48932,3313.0,3312.6,0.48937]
[1762528648501,0.49300222,3313.0,3312.6,0.48937]
[1762528648797,3.2078,3314.1,3312.8,3.2078]
[1762528649000,6.007,3315.2,3312.0,0.94681329]
[1762528649001,3.2078,3314.7,3313.3,3.2078]
[1762528649201,3.2078,3314.7,3313.9,3.2078]
[1762528649600,3.69694,3314.3,3313.5,3.2078]
[1762528649801,0.48921,3313.8,3313.5,3.69704]
[1762528650102,0.00299828,3314.2,3314.1,0.48916]
[1762528650401,0.48922,3313.7,3313.6,0.00453261]
[1762528651398,3.2078,3313.9,3313.7,0.48921]
[1762528651800,0.00299828,3314.2,3313.8,0.48919]
[1762528652003,0.00299828,3314.2,3313.9,3.2078]
[1762528652303,0.00299828,3314.2,3314.0,0.48917]
[1762528652602,3.2078,3315.6,3314.0,14.0352]
[1762528652804,3.2078,3315.6,3314.7,3.2078]
[1762528652998,3.2078,3315.6,3314.3,3.2078]
[1762528653298,3.2078,3315.6,3313.6,0.00453261]
[1762528653299,3.2078,3315.2,3313.8,3.2078]
[1762528653507,0.48902,3315.1,3314.9,0.48904]
[1762528653705,0.49168276,3315.1,3314.9,0.49214248]
[1762528653899,0.00266276,3315.1,3314.9,0.00310248]
[1762528654107,0.49168276,3315.1,3314.9,0.00310248]
[1762528654696,0.48903,3315.0,3314.9,0.00310248]
[1762528654908,0.49167276,3315.1,3314.9,0.00310248]
[1762528655204,0.00266276,3315.1,3313.4,3.2078]
[1762528655399,3.69687,3314.7,3313.4,3.2078]
[1762528655601,3.2078,3314.7,3313.9,3.2078]
[1762528655807,0.4891,3314.5,3313.9,3.2078]
[1762528656002,0.48909,3314.6,3314.3,0.48913]
[1762528656198,3.2078,3314.7,3314.5,0.4891]
[1762528656898,0.4935615,3314.8,3314.5,3.2078]
[1762528657098,0.48908,3314.7,3314.5,3.2078]
[1762528657297,0.48917,3314.0,3313.9,0.00332311]
[1762528657695,3.2078,3314.7,3313.9,0.00332311]
[1762528657905,0.48916,3314.1,3313.9,0.00332311]
[1762528658097,0.48911,3314.5,3313.9,0.49251311]
[1762528658302,0.0045015,3314.8,3314.1,3.2078]
[1762528658502,0.0045015,3314.8,3313.9,0.00332311]
[1762528658503,0.0045015,3314.8,3314.6,0.48908]
[1762528658806,0.48909,3314.6,3314.5,3.2078]
[1762528658999,0.48917,3314.0,3313.9,0.00784854]
[1762528659206,0.0045015,3314.8,3313.9,3.21564854]
[1762528659609,0.0045015,3314.8,3314.5,0.48909]
[1762528659805,0.0045015,3314.8,3314.7,0.48907]
[1762528660206,0.48909,3314.5,3314.4,3.2078]
[1762528660407,0.0045015,3314.8,3314.7,0.48907]
[1762528660614,3.2123015,3314.8,3314.0,3.2078]
[1762528660906,0.48915,3314.1,3314.0,3.2078]
[1762528661305,0.0045015,3314.8,3314.0,11.2078]
[1762528661512,0.48908,3314.6,3314.5,0.48908]
[1762528661716,0.48907,3314.7,3314.6,0.48908]
[1762528662016,3.2078,3316.4,3315.5,0.48895]
[1762528662314,3.2078,3316.4,3315.4,0.48895]
[1762528662512,0.48892,3315.7,3314.6,3.2078]
[1762528662809,0.11836,3316.5,3315.0,3.2078]
[1762528662810,0.48898,3315.3,3315.0,3.2078]
[1762528663010,0.48904,3314.9,3314.8,0.00452543]
[1762528663407,3.2078,3315.0,3314.2,3.2078]
[1762528663610,0.48913,3314.3,3314.2,3.2078]
[1762528663810,0.4892,3313.8,3313.7,3.2078]
[1762528664114,3.2078,3314.5,3313.2,3.2078]
[1762528664314,0.00452543,3314.2,3313.6,3.2078]
[1762528664919,0.00452543,3314.2,3313.6,3.21039194]
[1762528665113,0.4892,3313.8,3313.6,3.21039194]
[1762528665309,0.4892,3313.8,3313.6,0.00259194]
[1762528666320,3.2078,3314.0,3313.6,0.00259194]
[1762528666525,0.48921,3313.8,3313.6,0.00259194]
[1762528666714,8.0,3313.9,3312.0,3.69727]
[1762528667023,3.2078,3313.0,3312.4,3.2078]
[1762528667313,3.2078,3313.9,3312.8,3.2078]
[1762528667514,3.2078,3313.2,3312.6,0.48938]
[1762528667717,3.2078,3313.7,3312.6,0.00835215]
[1762528667918,0.48928,3313.3,3312.8,3.2078]
[1762528668116,0.48928,3313.3,3312.6,0.00835215]
[1762528668117,0.7126,3313.2,3311.8,3.2078]
[1762528668320,0.48949,3311.9,3310.9,3.2078]
[1762528668524,3.2078,3312.3,3310.8,3.2078]
[1762528668714,3.2078,3311.9,3310.8,3.2078]
[1762528669429,0.48959,3311.2,3311.0,0.00452543]
[1762528669629,3.2078,3311.1,3311.0,0.00452543]
[1762528669825,0.00452543,3311.7,3311.0,0.00452543]
[1762528670029,0.48959,3311.2,3311.0,0.49413543]
[1762528670222,0.00452543,3311.7,3311.0,0.00452543]
[1762528670527,0.00452543,3311.7,3311.5,0.48954]
[1762528671025,0.49404543,3311.7,3311.5,0.48954]
[1762528671223,0.00452543,3311.7,3311.5,0.48954]
[1762528671731,0.00452543,3311.7,3311.5,0.48953]
[1762528672225,0.48955,3311.5,3311.3,3.2078]
[1762528672425,0.49404543,3311.7,3311.5,0.48954]
[1762528672621,0.00452543,3311.7,3311.2,0.48958]
[1762528672826,0.48955,3311.5,3311.0,0.00452543]
[1762528673128,0.00452543,3311.7,3311.1,0.4896]
[1762528673320,0.4896,3311.1,3311.0,0.00452543]
[1762528673921,0.00452543,3311.7,3311.5,0.48953]
[1762528674122,0.48954,3311.6,3311.3,0.48956]
[1762528674326,0.48954,3311.6,3309.9,0.9496]
[1762528674327,0.9492,3309.0,3308.3,2.04426739]
[1762528674634,3.88505446,3308.9,3306.0,0.9496]